[Event "*** SCC Grand Prix: Titled Tuesday Blitz"]
[Site "Chess.com"]
[Date "2020.09.08"]
[Round "5"]
[White "Keures"]
[Black "Bayernbk"]
[Result "0-1"]
[WhiteElo "2350"]
[BlackElo "2525"]
[TimeControl "180+1"]
[EndTime "10:55:14 PDT"]
[Termination "Bayernbk won by resignation"]

1. d4 {[%clk 0:03:00.2]} 1... Nf6 {[%clk 0:02:59.1]} 2. c4 {[%clk 0:02:59.7]}
2... e6 {[%clk 0:02:59.3]} 3. Nc3 {[%clk 0:02:59.4]} 3... d5 {[%clk 0:02:59.9]}
4. Bg5 {[%clk 0:02:57]} 4... Be7 {[%clk 0:02:59.2]} 5. e3 {[%clk 0:02:57.1]}
5... h6 {[%clk 0:02:59.5]} 6. Bh4 {[%clk 0:02:56.8]} 6... O-O {[%clk 0:03:00]}
7. Qc2 {[%clk 0:02:56.8]} 7... c6 {[%clk 0:02:58.8]} 8. cxd5 {[%clk 0:02:55.5]}
8... Nxd5 {[%clk 0:02:57.9]} 9. Bxe7 {[%clk 0:02:54.4]} 9... Qxe7 {[%clk
0:02:58.5]} 10. Nf3 {[%clk 0:02:47.4]} 10... Nd7 {[%clk 0:02:57.8]} 11. Nxd5
{[%clk 0:02:44.8]} 11... exd5 {[%clk 0:02:57.3]} 12. Bd3 {[%clk 0:02:44.5]}
12... Nf6 {[%clk 0:02:57.6]} 13. h3 {[%clk 0:02:44.9]} 13... Be6 {[%clk
0:02:45.1]} 14. Rb1 {[%clk 0:02:43.7]} 14... a5 {[%clk 0:02:44.5]} 15. b3 {[%clk
0:02:43.6]} 15... Rfe8 {[%clk 0:02:39.3]} 16. O-O {[%clk 0:02:43.1]} 16... Qd7
{[%clk 0:02:39.6]} 17. Kh2 {[%clk 0:02:42.3]} 17... Qd6+ {[%clk 0:02:35.1]} 18.
Kg1 {[%clk 0:02:39.8]} 18... Ne4 {[%clk 0:02:34.9]} 19. Bxe4 {[%clk 0:02:37.1]}
19... dxe4 {[%clk 0:02:35]} 20. Qxe4 {[%clk 0:02:21.2]} 20... Bxh3 {[%clk
0:02:11.4]} 21. Qc2 {[%clk 0:02:18.3]} 21... Qd5 {[%clk 0:01:53.7]} 22. b4
{[%clk 0:02:12.5]} 22... Bxg2 {[%clk 0:01:28.7]} 23. Kxg2 {[%clk 0:02:10.3]}
23... Re4 {[%clk 0:01:29]} 24. Rg1 {[%clk 0:01:46.4]} 24... axb4 {[%clk
0:01:13.4]} 25. Ne5 {[%clk 0:01:27.9]} 25... Rxe5+ {[%clk 0:01:00.1]} 26. Kf1
{[%clk 0:01:28.3]} 26... Rxa2 {[%clk 0:00:55.9]} 27. Rb2 {[%clk 0:01:11.7]}
27... Ra1+ {[%clk 0:00:37]} 28. Rb1 {[%clk 0:01:06.5]} 28... Rxb1+ {[%clk
0:00:37.1]} 29. Qxb1 {[%clk 0:01:07.4]} 29... Qc4+ {[%clk 0:00:37.1]} 30. Ke1
{[%clk 0:01:04.3]} 30... Ra5 {[%clk 0:00:37.7]} 0-1

[Event "*** SCC Grand Prix: Titled Tuesday Blitz"]
[Site "Chess.com"]
[Date "2020.09.08"]
[Round "5"]
[White "emiliocordova"]
[Black "Beca95"]
[Result "1-0"]
[WhiteElo "2802"]
[BlackElo "2920"]
[TimeControl "180+1"]
[EndTime "10:55:16 PDT"]
[Termination "emiliocordova won by resignation"]

1. d4 {[%clk 0:03:00.9]} 1... Nf6 {[%clk 0:02:59.6]} 2. Nf3 {[%clk 0:03:01.8]}
2... e6 {[%clk 0:02:59.4]} 3. g3 {[%clk 0:03:02.5]} 3... d5 {[%clk 0:02:56.2]}
4. Bg2 {[%clk 0:03:03.4]} 4... b5 {[%clk 0:02:56.2]} 5. a4 {[%clk 0:03:00.6]}
5... b4 {[%clk 0:02:55.7]} 6. c4 {[%clk 0:03:01]} 6... Ba6 {[%clk 0:02:53.5]} 7.
Ne5 {[%clk 0:02:58.6]} 7... Bd6 {[%clk 0:02:52.5]} 8. O-O {[%clk 0:02:57.4]}
8... O-O {[%clk 0:02:52]} 9. Bg5 {[%clk 0:02:57.1]} 9... c6 {[%clk 0:02:50]} 10.
Nd2 {[%clk 0:02:55.9]} 10... h6 {[%clk 0:02:48.7]} 11. Bxf6 {[%clk 0:02:52]}
11... Qxf6 {[%clk 0:02:45.9]} 12. f4 {[%clk 0:02:50.9]} 12... Qd8 {[%clk
0:02:44.1]} 13. Rc1 {[%clk 0:02:46]} 13... f6 {[%clk 0:02:43.5]} 14. Ng6 {[%clk
0:02:42.1]} 14... Re8 {[%clk 0:02:43.4]} 15. e4 {[%clk 0:02:41.5]} 15... Nd7
{[%clk 0:02:25.6]} 16. e5 {[%clk 0:02:37.1]} 16... Nf8 {[%clk 0:02:18.7]} 17.
Qh5 {[%clk 0:02:34.1]} 17... Nxg6 {[%clk 0:02:04.5]} 18. Qxg6 {[%clk 0:02:35]}
18... Bf8 {[%clk 0:02:04.5]} 19. c5 {[%clk 0:02:13.8]} 19... f5 {[%clk 0:01:54]}
20. g4 {[%clk 0:02:03.5]} 20... Qd7 {[%clk 0:01:53.7]} 21. gxf5 {[%clk
0:01:58.4]} 21... exf5 {[%clk 0:01:51.1]} 22. Bh3 {[%clk 0:01:58.4]} 22... Qf7
{[%clk 0:01:50.2]} 23. Bxf5 {[%clk 0:01:52.3]} 23... Qxg6+ {[%clk 0:01:50.3]}
24. Bxg6 {[%clk 0:01:53.2]} 24... Bxf1 {[%clk 0:01:41.1]} 25. Bxe8 {[%clk
0:01:51.8]} 25... Rxe8 {[%clk 0:01:42]} 26. Rxf1 {[%clk 0:01:50.1]} 26... Be7
{[%clk 0:01:42.3]} 27. Kg2 {[%clk 0:01:49.5]} 27... Kf7 {[%clk 0:01:40.5]} 28.
Nb3 {[%clk 0:01:43.1]} 28... Bd8 {[%clk 0:01:40]} 29. f5 {[%clk 0:01:41.6]}
29... h5 {[%clk 0:01:27.7]} 30. Kg3 {[%clk 0:01:41]} 30... Rh8 {[%clk
0:01:26.7]} 31. h4 {[%clk 0:01:40.6]} 31... Rg8 {[%clk 0:01:26.9]} 32. Nd2
{[%clk 0:01:28.8]} 32... Be7 {[%clk 0:01:21.4]} 33. Nf3 {[%clk 0:01:27]} 33...
b3 {[%clk 0:01:21.8]} 34. Ng5+ {[%clk 0:01:26.1]} 34... Bxg5 {[%clk 0:01:20.6]}
35. hxg5 {[%clk 0:01:27]} 35... Rb8 {[%clk 0:01:19]} 36. g6+ {[%clk 0:01:25.8]}
36... Ke7 {[%clk 0:01:17.2]} 37. f6+ {[%clk 0:01:21]} 37... Kf8 {[%clk
0:01:17.5]} 38. f7 {[%clk 0:00:57.6]} 38... h4+ {[%clk 0:01:10.5]} 39. Kh3
{[%clk 0:00:53.7]} 39... a5 {[%clk 0:00:59.3]} 40. Rf5 {[%clk 0:00:53]} 40...
Ke7 {[%clk 0:00:58.6]} 41. Rh5 {[%clk 0:00:50.3]} 1-0

[Event "*** SCC Grand Prix: Titled Tuesday Blitz"]
[Site "Chess.com"]
[Date "2020.09.08"]
[Round "5"]
[White "IngOscarArdila"]
[Black "nau64"]
[Result "0-1"]
[WhiteElo "2179"]
[BlackElo "2302"]
[TimeControl "180+1"]
[EndTime "10:55:16 PDT"]
[Termination "nau64 won by resignation"]

1. d4 {[%clk 0:01:15.6]} 1... Nf6 {[%clk 0:02:59.2]} 2. c4 {[%clk 0:01:15.2]}
2... g6 {[%clk 0:02:59.3]} 3. Nc3 {[%clk 0:01:15.2]} 3... d5 {[%clk 0:02:59.5]}
4. e4 {[%clk 0:01:15.7]} 4... dxe4 {[%clk 0:02:58.8]} 5. Nge2 {[%clk 0:01:11]}
5... Bg7 {[%clk 0:02:51.4]} 6. h3 {[%clk 0:01:10.5]} 6... O-O {[%clk 0:02:51.2]}
7. Be3 {[%clk 0:01:10.2]} 7... b6 {[%clk 0:02:20]} 8. Ng3 {[%clk 0:01:07.1]}
8... Bb7 {[%clk 0:02:19.9]} 9. Qc2 {[%clk 0:01:05]} 9... Na6 {[%clk 0:02:06.1]}
10. a3 {[%clk 0:01:02.4]} 10... c5 {[%clk 0:02:05.1]} 11. Rd1 {[%clk 0:00:57.3]}
11... cxd4 {[%clk 0:02:03.7]} 12. Rxd4 {[%clk 0:00:56.8]} 12... Nd7 {[%clk
0:01:45.3]} 13. Rd2 {[%clk 0:00:50.9]} 13... f5 {[%clk 0:01:40.2]} 14. Nge2
{[%clk 0:00:34.8]} 14... e6 {[%clk 0:01:29.4]} 15. g3 {[%clk 0:00:19.9]} 15...
Qe7 {[%clk 0:01:29]} 16. Bg2 {[%clk 0:00:18.5]} 16... Nac5 {[%clk 0:01:28.4]}
17. O-O {[%clk 0:00:17.8]} 17... Rfd8 {[%clk 0:01:27.5]} 18. Nd4 {[%clk
0:00:15.5]} 18... a6 {[%clk 0:01:21.3]} 19. b4 {[%clk 0:00:14.7]} 19... Nd3
{[%clk 0:01:19.1]} 20. Rxd3 {[%clk 0:00:14.9]} 20... exd3 {[%clk 0:01:18.7]} 21.
Qxd3 {[%clk 0:00:15.8]} 21... Bxg2 {[%clk 0:01:18.8]} 22. Kxg2 {[%clk
0:00:16.1]} 22... Ne5 {[%clk 0:01:11.6]} 23. Qe2 {[%clk 0:00:13.3]} 23... Qb7+
{[%clk 0:01:08.3]} 24. Kh2 {[%clk 0:00:11.8]} 24... Rxd4 {[%clk 0:01:02.7]} 25.
Bxd4 {[%clk 0:00:11.7]} 25... Nf3+ {[%clk 0:01:02.9]} 26. Kg2 {[%clk 0:00:10.2]}
26... Nxd4+ {[%clk 0:01:02.9]} 0-1

[Event "*** SCC Grand Prix: Titled Tuesday Blitz"]
[Site "Chess.com"]
[Date "2020.09.08"]
[Round "5"]
[White "sergiochess83"]
[Black "ChessWarrior7197"]
[Result "0-1"]
[WhiteElo "2831"]
[BlackElo "2952"]
[TimeControl "180+1"]
[EndTime "10:55:18 PDT"]
[Termination "ChessWarrior7197 won by resignation"]

1. e4 {[%clk 0:03:00.9]} 1... e5 {[%clk 0:02:59.2]} 2. Nf3 {[%clk 0:03:00.1]}
2... Nc6 {[%clk 0:02:59.8]} 3. Bb5 {[%clk 0:02:58.5]} 3... a6 {[%clk 0:02:59]}
4. Ba4 {[%clk 0:02:58.6]} 4... Nf6 {[%clk 0:02:58]} 5. O-O {[%clk 0:02:58.7]}
5... Nxe4 {[%clk 0:02:58.4]} 6. d4 {[%clk 0:02:56.2]} 6... b5 {[%clk 0:02:58.5]}
7. Bb3 {[%clk 0:02:56]} 7... d5 {[%clk 0:02:59]} 8. dxe5 {[%clk 0:02:56.1]} 8...
Be6 {[%clk 0:02:59.3]} 9. Qe2 {[%clk 0:02:49.1]} 9... Be7 {[%clk 0:02:52.8]} 10.
Rd1 {[%clk 0:02:48.5]} 10... O-O {[%clk 0:02:52.5]} 11. c4 {[%clk 0:02:40.8]}
11... bxc4 {[%clk 0:02:53.4]} 12. Bxc4 {[%clk 0:02:40.5]} 12... Bc5 {[%clk
0:02:53.2]} 13. Be3 {[%clk 0:02:35]} 13... Bxe3 {[%clk 0:02:53.6]} 14. Qxe3
{[%clk 0:02:35.3]} 14... Qb8 {[%clk 0:02:54.2]} 15. Bb3 {[%clk 0:02:25.5]} 15...
Qb6 {[%clk 0:02:53.7]} 16. Qxb6 {[%clk 0:02:13.2]} 16... cxb6 {[%clk 0:02:54.6]}
17. Nbd2 {[%clk 0:01:59.7]} 17... Rfd8 {[%clk 0:02:48.9]} 18. Rac1 {[%clk
0:01:55.8]} 18... Na5 {[%clk 0:02:48.9]} 19. Nd4 {[%clk 0:01:52.5]} 19... Nc5
{[%clk 0:02:37.3]} 20. Rc3 {[%clk 0:01:20]} 20... Nc4 {[%clk 0:02:13.7]} 21.
Nxe6 {[%clk 0:00:31.7]} 21... fxe6 {[%clk 0:02:11.9]} 22. Nxc4 {[%clk
0:00:19.2]} 22... dxc4 {[%clk 0:02:10.1]} 23. Rxd8+ {[%clk 0:00:18.8]} 23...
Rxd8 {[%clk 0:02:09.8]} 24. Bxc4 {[%clk 0:00:19.7]} 24... Rd1+ {[%clk
0:01:49.9]} 25. Bf1 {[%clk 0:00:19.6]} 25... Ne4 {[%clk 0:01:50.7]} 26. Rd3
{[%clk 0:00:17.5]} 26... Nd2 {[%clk 0:01:47.1]} 27. g3 {[%clk 0:00:17.9]} 27...
Rxf1+ {[%clk 0:01:42.6]} 28. Kg2 {[%clk 0:00:18.2]} 28... Rd1 {[%clk 0:01:43.3]}
29. a3 {[%clk 0:00:17.4]} 29... Kf7 {[%clk 0:01:41.5]} 30. h4 {[%clk 0:00:17.6]}
30... h5 {[%clk 0:01:41.6]} 31. Rd6 {[%clk 0:00:16.5]} 31... b5 {[%clk
0:01:40.4]} 32. Rd4 {[%clk 0:00:14.2]} 32... Kg6 {[%clk 0:01:39]} 33. f3 {[%clk
0:00:06.6]} 33... Nc4 {[%clk 0:01:29.2]} 0-1

[Event "*** SCC Grand Prix: Titled Tuesday Blitz"]
[Site "Chess.com"]
[Date "2020.09.08"]
[Round "5"]
[White "Resignify"]
[Black "AsaHoffmann"]
[Result "0-1"]
[WhiteElo "2225"]
[BlackElo "2398"]
[TimeControl "180+1"]
[EndTime "10:55:24 PDT"]
[Termination "AsaHoffmann won on time"]

1. e4 {[%clk 0:03:00.9]} 1... d6 {[%clk 0:02:45.4]} 2. d4 {[%clk 0:02:57.9]}
2... Nf6 {[%clk 0:02:43.1]} 3. Nc3 {[%clk 0:02:57.5]} 3... c6 {[%clk 0:02:42.9]}
4. Nf3 {[%clk 0:02:55.9]} 4... Bg4 {[%clk 0:02:42.1]} 5. h3 {[%clk 0:02:49]}
5... Bh5 {[%clk 0:02:41.5]} 6. Be2 {[%clk 0:02:33.1]} 6... e6 {[%clk 0:02:40.9]}
7. O-O {[%clk 0:02:32.4]} 7... d5 {[%clk 0:02:36.2]} 8. exd5 {[%clk 0:02:22.8]}
8... cxd5 {[%clk 0:02:34.7]} 9. Bf4 {[%clk 0:02:19.8]} 9... Nc6 {[%clk
0:02:33.3]} 10. Ne5 {[%clk 0:01:50.9]} 10... Bxe2 {[%clk 0:02:30.3]} 11. Nxe2
{[%clk 0:01:51.8]} 11... Be7 {[%clk 0:02:27.9]} 12. c3 {[%clk 0:01:39.5]} 12...
O-O {[%clk 0:02:26.7]} 13. Re1 {[%clk 0:01:37.9]} 13... Nxe5 {[%clk 0:02:19.8]}
14. Bxe5 {[%clk 0:01:36]} 14... Bd6 {[%clk 0:02:14.5]} 15. Ng3 {[%clk
0:01:25.7]} 15... Bxe5 {[%clk 0:02:13]} 16. dxe5 {[%clk 0:01:21.7]} 16... Nd7
{[%clk 0:02:12.5]} 17. Qg4 {[%clk 0:01:19.1]} 17... g6 {[%clk 0:02:09.7]} 18. h4
{[%clk 0:01:09.2]} 18... Rc8 {[%clk 0:02:08.2]} 19. h5 {[%clk 0:01:03.3]} 19...
Rc4 {[%clk 0:02:07.3]} 20. Qf3 {[%clk 0:00:56]} 20... Qg5 {[%clk 0:01:59.8]} 21.
Qe3 {[%clk 0:00:28.1]} 21... Qxe3 {[%clk 0:01:48.3]} 22. Rxe3 {[%clk 0:00:29]}
22... Kg7 {[%clk 0:01:46.7]} 23. Rd1 {[%clk 0:00:24.7]} 23... b5 {[%clk
0:01:44.9]} 24. Rd4 {[%clk 0:00:20.1]} 24... Rfc8 {[%clk 0:01:43.6]} 25. Rxc4
{[%clk 0:00:18.3]} 25... Rxc4 {[%clk 0:01:41.9]} 26. hxg6 {[%clk 0:00:17.3]}
26... hxg6 {[%clk 0:01:41.4]} 27. Ne2 {[%clk 0:00:17.5]} 27... b4 {[%clk
0:01:40.4]} 28. Kf1 {[%clk 0:00:12.4]} 28... bxc3 {[%clk 0:01:37.8]} 29. bxc3
{[%clk 0:00:10.8]} 29... Ra4 {[%clk 0:01:36.8]} 30. Nd4 {[%clk 0:00:06.5]} 30...
Rxa2 {[%clk 0:01:34.5]} 31. Re2 {[%clk 0:00:05.8]} 31... Rxe2 {[%clk 0:01:33.2]}
32. Kxe2 {[%clk 0:00:06.7]} 32... Nxe5 {[%clk 0:01:32.9]} 33. Nb5 {[%clk
0:00:06.9]} 33... a5 {[%clk 0:01:32.1]} 34. f4 {[%clk 0:00:05.1]} 34... Nc4
{[%clk 0:01:31.2]} 35. Kd3 {[%clk 0:00:03.7]} 35... a4 {[%clk 0:01:30.9]} 36.
Nd4 {[%clk 0:00:03.9]} 36... a3 {[%clk 0:01:30.1]} 37. Nc2 {[%clk 0:00:03.2]}
37... a2 {[%clk 0:01:28.9]} 38. Kd4 {[%clk 0:00:01.6]} 38... Kf6 {[%clk
0:01:27.3]} 39. Kc5 {[%clk 0:00:01.5]} 39... Ne3 {[%clk 0:01:26.7]} 0-1

[Event "*** SCC Grand Prix: Titled Tuesday Blitz"]
[Site "Chess.com"]
[Date "2020.09.08"]
[Round "5"]
[White "GOGIEFF"]
[Black "abykhovsky"]
[Result "1-0"]
[WhiteElo "2900"]
[BlackElo "2657"]
[TimeControl "180+1"]
[EndTime "10:55:26 PDT"]
[Termination "GOGIEFF won by resignation"]

1. d4 {[%clk 0:03:00.9]} 1... Nf6 {[%clk 0:02:59.7]} 2. c4 {[%clk 0:03:01.2]}
2... g6 {[%clk 0:02:59.9]} 3. Nc3 {[%clk 0:02:56.9]} 3... d5 {[%clk 0:03:00.1]}
4. cxd5 {[%clk 0:02:57.2]} 4... Nxd5 {[%clk 0:03:01]} 5. e4 {[%clk 0:02:57.7]}
5... Nxc3 {[%clk 0:03:01.3]} 6. bxc3 {[%clk 0:02:58.4]} 6... Bg7 {[%clk
0:03:02.2]} 7. Bc4 {[%clk 0:02:58.5]} 7... c5 {[%clk 0:03:02.5]} 8. Ne2 {[%clk
0:02:59.1]} 8... Nc6 {[%clk 0:03:02.8]} 9. Be3 {[%clk 0:02:59.3]} 9... O-O
{[%clk 0:03:03]} 10. O-O {[%clk 0:02:59.6]} 10... Bg4 {[%clk 0:03:03.3]} 11. f3
{[%clk 0:02:59.4]} 11... Bd7 {[%clk 0:03:03.9]} 12. Rb1 {[%clk 0:02:58.7]} 12...
Rc8 {[%clk 0:03:02.9]} 13. Qd2 {[%clk 0:02:59.1]} 13... Qc7 {[%clk 0:02:54.4]}
14. Rfc1 {[%clk 0:02:57.7]} 14... Rfd8 {[%clk 0:02:52.2]} 15. Bf4 {[%clk
0:02:57.1]} 15... e5 {[%clk 0:02:47.9]} 16. Bg5 {[%clk 0:02:57.1]} 16... Re8
{[%clk 0:02:47.6]} 17. dxc5 {[%clk 0:02:33.3]} 17... Bf8 {[%clk 0:02:24.1]} 18.
Kh1 {[%clk 0:02:29.2]} 18... Na5 {[%clk 0:02:20.1]} 19. Bd5 {[%clk 0:02:26.6]}
19... Bxc5 {[%clk 0:02:16.3]} 20. c4 {[%clk 0:02:25]} 20... Be6 {[%clk
0:01:45.1]} 21. Bf6 {[%clk 0:01:42.3]} 21... b6 {[%clk 0:01:08.2]} 22. Qg5
{[%clk 0:01:37.4]} 22... Bd6 {[%clk 0:00:06.8]} 23. Ng3 {[%clk 0:01:28.2]} 23...
Nc6 {[%clk 0:00:05]} 24. Nf5 {[%clk 0:01:21.1]} 24... Bxf5 {[%clk 0:00:03]} 25.
exf5 {[%clk 0:01:21]} 25... Ne7 {[%clk 0:00:02.4]} 26. fxg6 {[%clk 0:01:16.2]}
26... Nxg6 {[%clk 0:00:02.4]} 27. c5 {[%clk 0:01:10.9]} 27... Be7 {[%clk
0:00:03]} 28. cxb6 {[%clk 0:01:09.1]} 28... Bxf6 {[%clk 0:00:03.1]} 29. Rxc7
{[%clk 0:01:03.9]} 29... Bxg5 {[%clk 0:00:03.4]} 30. Bxf7+ {[%clk 0:01:03.8]}
30... Kf8 {[%clk 0:00:03.7]} 31. Bxe8 {[%clk 0:01:04]} 1-0

[Event "*** SCC Grand Prix: Titled Tuesday Blitz"]
[Site "Chess.com"]
[Date "2020.09.08"]
[Round "5"]
[White "poppy73"]
[Black "Bacyanide"]
[Result "0-1"]
[WhiteElo "2253"]
[BlackElo "2410"]
[TimeControl "180+1"]
[EndTime "10:55:29 PDT"]
[Termination "Bacyanide won by resignation"]

1. e4 {[%clk 0:03:00.9]} 1... c6 {[%clk 0:02:58.6]} 2. Nc3 {[%clk 0:02:58.6]}
2... d5 {[%clk 0:02:59.5]} 3. Nf3 {[%clk 0:02:58.9]} 3... dxe4 {[%clk
0:02:58.8]} 4. Nxe4 {[%clk 0:02:59.7]} 4... Nf6 {[%clk 0:02:59.3]} 5. Qe2 {[%clk
0:02:59.6]} 5... Nxe4 {[%clk 0:02:58.7]} 6. Qxe4 {[%clk 0:03:00.4]} 6... Be6
{[%clk 0:02:59.2]} 7. c4 {[%clk 0:02:32.3]} 7... Nd7 {[%clk 0:02:57.8]} 8. d4
{[%clk 0:02:30.3]} 8... g6 {[%clk 0:02:51.5]} 9. Bd3 {[%clk 0:02:18.1]} 9... Bg7
{[%clk 0:02:35.2]} 10. O-O {[%clk 0:02:15.4]} 10... Nc5 {[%clk 0:02:31.5]} 11.
Qe2 {[%clk 0:01:53.7]} 11... Nxd3 {[%clk 0:02:30.4]} 12. Qxd3 {[%clk 0:01:54]}
12... O-O {[%clk 0:02:31.3]} 13. Be3 {[%clk 0:01:52.7]} 13... Qa5 {[%clk
0:02:26.8]} 14. Bd2 {[%clk 0:01:45.3]} 14... Qh5 {[%clk 0:02:25]} 15. Bc3 {[%clk
0:01:38.4]} 15... Rad8 {[%clk 0:02:19.6]} 16. Qe2 {[%clk 0:01:36.4]} 16... Bg4
{[%clk 0:02:16.5]} 17. Rad1 {[%clk 0:01:32.7]} 17... Bxf3 {[%clk 0:02:15.7]} 18.
Qxf3 {[%clk 0:01:32.5]} 18... Qxf3 {[%clk 0:02:15.5]} 19. gxf3 {[%clk
0:01:33.4]} 19... Rd7 {[%clk 0:02:14.6]} 20. Rd2 {[%clk 0:01:32.3]} 20... Rfd8
{[%clk 0:02:15]} 21. Rfd1 {[%clk 0:01:32.4]} 21... c5 {[%clk 0:02:05.7]} 22.
dxc5 {[%clk 0:01:18]} 22... Rxd2 {[%clk 0:02:03.9]} 23. Rxd2 {[%clk 0:01:16.2]}
23... Rxd2 {[%clk 0:02:03.4]} 24. Bxd2 {[%clk 0:01:17.1]} 24... Bxb2 {[%clk
0:02:03.6]} 25. Be3 {[%clk 0:01:05.1]} 25... a6 {[%clk 0:02:03]} 26. Kf1 {[%clk
0:01:04.2]} 26... Kf8 {[%clk 0:02:01.9]} 27. Ke2 {[%clk 0:01:03]} 27... Ke8
{[%clk 0:02:02.1]} 28. c6 {[%clk 0:00:50.2]} 28... bxc6 {[%clk 0:01:58.5]} 29.
Bc5 {[%clk 0:00:49.9]} 29... Kd7 {[%clk 0:01:57.6]} 30. Kd3 {[%clk 0:00:49.5]}
30... Be5 {[%clk 0:01:57]} 31. h3 {[%clk 0:00:48.1]} 31... Bd6 {[%clk
0:01:46.2]} 32. Be3 {[%clk 0:00:47.3]} 32... e5 {[%clk 0:01:42.3]} 33. c5 {[%clk
0:00:42.4]} 33... Bc7 {[%clk 0:01:40.5]} 34. Kc4 {[%clk 0:00:36.5]} 34... Ke6
{[%clk 0:01:39.8]} 35. Kd3 {[%clk 0:00:30.3]} 35... Kd5 {[%clk 0:01:37.9]} 36.
Kc3 {[%clk 0:00:20.7]} 36... Ba5+ {[%clk 0:01:32.7]} 37. Kb3 {[%clk 0:00:20.8]}
37... f5 {[%clk 0:01:32.9]} 38. Ka4 {[%clk 0:00:19.8]} 38... Be1 {[%clk
0:01:32]} 39. f4 {[%clk 0:00:14.2]} 39... exf4 {[%clk 0:01:30.9]} 40. Bxf4
{[%clk 0:00:15.1]} 40... Bxf2 {[%clk 0:01:30.5]} 0-1

[Event "*** SCC Grand Prix: Titled Tuesday Blitz"]
[Site "Chess.com"]
[Date "2020.09.08"]
[Round "5"]
[White "Rap_woyska"]
[Black "jamik13"]
[Result "0-1"]
[WhiteElo "2339"]
[BlackElo "2209"]
[TimeControl "180+1"]
[EndTime "10:55:30 PDT"]
[Termination "jamik13 won by resignation"]

1. c4 {[%clk 0:03:00.6]} 1... Nf6 {[%clk 0:02:59.4]} 2. Nf3 {[%clk 0:02:57.9]}
2... g6 {[%clk 0:02:58.8]} 3. Nc3 {[%clk 0:02:55.2]} 3... d5 {[%clk 0:02:58.6]}
4. cxd5 {[%clk 0:02:56.1]} 4... Nxd5 {[%clk 0:02:57.7]} 5. g3 {[%clk 0:02:56.8]}
5... Bg7 {[%clk 0:02:56.9]} 6. Bg2 {[%clk 0:02:56.1]} 6... O-O {[%clk
0:02:55.4]} 7. O-O {[%clk 0:02:55.9]} 7... Nb6 {[%clk 0:02:54.5]} 8. d3 {[%clk
0:02:41.9]} 8... Nc6 {[%clk 0:02:51.6]} 9. a3 {[%clk 0:02:36]} 9... a5 {[%clk
0:02:50.2]} 10. Be3 {[%clk 0:02:31]} 10... Nd5 {[%clk 0:02:47.5]} 11. Nxd5
{[%clk 0:02:25.7]} 11... Qxd5 {[%clk 0:02:46.9]} 12. Nd4 {[%clk 0:02:26.1]}
12... Qd6 {[%clk 0:02:33.9]} 13. Nxc6 {[%clk 0:02:07.6]} 13... bxc6 {[%clk
0:02:32.1]} 14. Qc2 {[%clk 0:02:05.2]} 14... Rb8 {[%clk 0:02:27.3]} 15. Rab1
{[%clk 0:02:04.2]} 15... Be6 {[%clk 0:02:16.6]} 16. Rfc1 {[%clk 0:02:01.5]}
16... Ba2 {[%clk 0:02:13.8]} 17. Ra1 {[%clk 0:01:58.1]} 17... Rxb2 {[%clk
0:02:11.2]} 18. Qxc6 {[%clk 0:01:53.7]} 18... Rxe2 {[%clk 0:02:05.5]} 19. d4
{[%clk 0:01:46]} 19... Rd8 {[%clk 0:01:47.3]} 20. Qxc7 {[%clk 0:01:29.2]} 20...
Bxd4 {[%clk 0:01:38.5]} 21. Qxd6 {[%clk 0:00:36.8]} 21... Rxd6 {[%clk
0:01:38.4]} 22. Bxd4 {[%clk 0:00:36.1]} 22... Rxd4 {[%clk 0:01:38.4]} 23. Bf1
{[%clk 0:00:36.1]} 23... Rb2 {[%clk 0:01:35.3]} 24. Rc8+ {[%clk 0:00:35.5]}
24... Kg7 {[%clk 0:01:34.5]} 25. Re1 {[%clk 0:00:36]} 25... Be6 {[%clk
0:01:26.6]} 26. Rc3 {[%clk 0:00:31.6]} 26... Rdd2 {[%clk 0:01:24.9]} 27. Rf3
{[%clk 0:00:25.8]} 27... Bd5 {[%clk 0:01:22.3]} 28. Rf4 {[%clk 0:00:25.2]} 28...
e6 {[%clk 0:01:15.3]} 29. h4 {[%clk 0:00:22.8]} 29... h6 {[%clk 0:01:13.5]} 30.
Ra4 {[%clk 0:00:16.5]} 30... Rxf2 {[%clk 0:01:10.8]} 31. Re3 {[%clk 0:00:14.7]}
31... Rh2 {[%clk 0:01:07.1]} 0-1

[Event "*** SCC Grand Prix: Titled Tuesday Blitz"]
[Site "Chess.com"]
[Date "2020.09.08"]
[Round "5"]
[White "TheMagnet"]
[Black "MVM2008"]
[Result "1-0"]
[WhiteElo "2577"]
[BlackElo "2274"]
[TimeControl "180+1"]
[EndTime "10:55:33 PDT"]
[Termination "TheMagnet won on time"]

1. d4 {[%clk 0:03:00.9]} 1... Nf6 {[%clk 0:02:53.7]} 2. c4 {[%clk 0:03:00.9]}
2... b6 {[%clk 0:02:51]} 3. Nf3 {[%clk 0:02:56.6]} 3... Bb7 {[%clk 0:02:48.9]}
4. g3 {[%clk 0:02:57.1]} 4... e6 {[%clk 0:02:42.2]} 5. Bg2 {[%clk 0:02:57.1]}
5... d5 {[%clk 0:02:42.1]} 6. O-O {[%clk 0:02:56.3]} 6... c5 {[%clk 0:02:38.9]}
7. cxd5 {[%clk 0:02:54.8]} 7... exd5 {[%clk 0:02:38.4]} 8. Nc3 {[%clk
0:02:54.6]} 8... Nc6 {[%clk 0:02:33.4]} 9. Bg5 {[%clk 0:02:46.4]} 9... Be7
{[%clk 0:02:31.9]} 10. dxc5 {[%clk 0:02:43.3]} 10... bxc5 {[%clk 0:02:03.7]} 11.
Bxf6 {[%clk 0:02:42.9]} 11... Bxf6 {[%clk 0:02:03.7]} 12. Nxd5 {[%clk
0:02:35.3]} 12... O-O {[%clk 0:01:53.7]} 13. Nxf6+ {[%clk 0:02:34.2]} 13... Qxf6
{[%clk 0:01:54.6]} 14. Qc2 {[%clk 0:02:24.4]} 14... Nd4 {[%clk 0:01:15.9]} 15.
Nxd4 {[%clk 0:02:24]} 15... Bxg2 {[%clk 0:01:15.8]} 16. Kxg2 {[%clk 0:02:24.9]}
16... cxd4 {[%clk 0:01:15.9]} 17. Rad1 {[%clk 0:02:21.8]} 17... Rac8 {[%clk
0:01:14.7]} 18. Qd3 {[%clk 0:02:19.4]} 18... Rfd8 {[%clk 0:01:12.6]} 19. Rd2
{[%clk 0:02:17.9]} 19... g6 {[%clk 0:00:58.4]} 20. Rfd1 {[%clk 0:02:17.4]} 20...
Rd5 {[%clk 0:00:26]} 21. Qf3 {[%clk 0:02:16.1]} 21... Qxf3+ {[%clk 0:00:20.4]}
22. Kxf3 {[%clk 0:02:17]} 22... Rcd8 {[%clk 0:00:20.6]} 23. Rd3 {[%clk
0:02:08.4]} 23... Rb8 {[%clk 0:00:10.2]} 24. b3 {[%clk 0:02:01.9]} 24... Rc5
{[%clk 0:00:04.7]} 25. Rxd4 {[%clk 0:02:00.3]} 25... Rc3+ {[%clk 0:00:04.9]} 26.
e3 {[%clk 0:01:58.5]} 26... Rc2 {[%clk 0:00:04.3]} 27. R1d2 {[%clk 0:01:58.8]}
27... Rc1 {[%clk 0:00:04.1]} 28. Rd7 {[%clk 0:01:57.1]} 28... a5 {[%clk
0:00:03.4]} 29. Ra7 {[%clk 0:01:56.9]} 29... Rc5 {[%clk 0:00:03.3]} 30. g4
{[%clk 0:01:52.5]} 30... h5 {[%clk 0:00:02.9]} 31. h3 {[%clk 0:01:52.6]} 31...
hxg4+ {[%clk 0:00:02.2]} 32. hxg4 {[%clk 0:01:53.5]} 32... Kg7 {[%clk
0:00:02.7]} 33. Rdd7 {[%clk 0:01:53.3]} 33... Rf8 {[%clk 0:00:02.9]} 34. Kf4
{[%clk 0:01:46.5]} 34... g5+ {[%clk 0:00:03]} 35. Kg3 {[%clk 0:01:45.6]} 35...
Kg6 {[%clk 0:00:03.5]} 36. Rd6+ {[%clk 0:01:44.7]} 36... f6 {[%clk 0:00:03.7]}
37. Rda6 {[%clk 0:01:41.3]} 37... Rg8 {[%clk 0:00:03.4]} 38. Rxa5 {[%clk
0:01:40.8]} 38... Rc1 {[%clk 0:00:03.6]} 39. Kf3 {[%clk 0:01:38]} 39... Rg1
{[%clk 0:00:03.1]} 40. Rb7 {[%clk 0:01:32.8]} 40... Rd8 {[%clk 0:00:02.4]} 41.
Raa7 {[%clk 0:01:31.1]} 1-0